fUST/lending_fUST_20240911
["ID","MTS","AMOUNT","RATE_DAILY","PERIOD"]
[337753021,1726050641095,-159.375,0.00026558,2]
[337753022,1726050641106,-159.375,0.00026629,2]
[337753023,1726050641116,-159.375,0.000267,2]
[337753024,1726050641128,-159.375,0.00026771,2]
[337753025,1726050641139,-159.375,0.00026842,2]
[337753026,1726050641148,-159.375,0.00026913,2]
[337753027,1726050641158,-159.375,0.00026985,2]
[337753028,1726050641167,-157.0,0.00027,2]
[337753029,1726050641177,-159.375,0.00027056,2]
[337753030,1726050641186,-159.375,0.00027127,2]
[337753031,1726050641195,-159.375,0.00027198,2]
[337753032,1726050641205,-153.0,0.00027233,2]
[337753033,1726050641215,-153.0,0.00027233,2]
[337753034,1726050641224,-515.9136646,0.00027233,2]
[337753035,1726050641234,-153.0,0.00027233,2]
[337753036,1726050641243,-153.0,0.00027233,2]
[337753037,1726050641253,-153.0,0.00027233,2]
[337753038,1726050641262,-1170.0165528,0.00027257,2]
[337753039,1726050641274,-159.375,0.00027269,2]
[337753040,1726050641283,-2586.83762121,0.00027297,2]
[337753041,1726050641294,-200.0,0.00027356,2]
[337753042,1726050641304,-377.7,0.00027357,3]
[337753043,1726050641314,-188.85,0.00027357,3]
[337753044,1726050641324,-566.56,0.00027357,3]
[337753045,1726050641333,-31143.98,0.00027357,3]
[337753046,1726050641342,-25953.32,0.00027357,3]
[337753047,1726050641352,-21627.77,0.00027357,3]
[337753048,1726050641361,-206.661745,0.00027363,2]
[337753049,1726050641370,-12952.79483351,0.00027367,4]
[337753050,1726050641383,-68781.28971299,0.00027367,4]
[337753051,1726050641392,-253.85677482,0.00027373,2]
[337753052,1726050641402,-644.53128183,0.00027373,2]
[337753053,1726050641411,-159.86074768,0.00027373,2]
[337753054,1726050641421,-500.0,0.00027373,2]
[337753055,1726050641430,-501.02546757,0.00027373,2]
[337753056,1726050641439,-500.06624011,0.00027373,2]
[337753057,1726050641450,-500.0,0.00027376,2]
[337753058,1726050641462,-281.68022937,0.00027376,2]
[337753059,1726050641471,-500.0,0.00027376,2]
[337753060,1726050641482,-272.86334055,0.00027376,2]
[337753061,1726050641493,-755.39,0.00027376,3]
[337753062,1726050641503,-16040.50447087,0.00027377,4]
[337753071,1726050643651,-28947.5000002,0.00027377,4]
[337753072,1726050643677,-66142.86307824,0.00027377,4]
[337753143,1726051831867,-157.33301764,0.000251,10]
[337753144,1726051831877,-166.666666,0.00025448,2]
[337753145,1726051831887,-500.0,0.000255,2]
[337753146,1726051831896,-187.30391033,0.00025529,2]
[337753151,1726051837922,-2812.69608967,0.00025529,2]
[337753152,1726051837934,-500.0,0.000265,2]
[337753153,1726051837944,-443.5447486,0.000269,2]
[337753154,1726051837954,-1000.0,0.00027,2]
[337753155,1726051837965,-1266.09040886,0.00027002,2]
[337753156,1726051837976,-25953.32,0.0002709,3]
[337753157,1726051837986,-21627.77,0.0002709,3]
[337753158,1726051837996,-197.17616056,0.00027099,2]
[337753159,1726051838005,-500.0,0.00027099,2]
[337753160,1726051838015,-391.00433838,0.00027099,2]
[337753161,1726051838025,-200.0,0.00027099,2]
[337753162,1726051838039,-50200.0,0.000271,3]
[337753163,1726051838048,-50300.0,0.000271,4]
[337753164,1726051838058,-50300.0,0.000271,5]
[337753165,1726051838067,-50300.0,0.000271,2]
[337753166,1726051838077,-50300.0,0.000271,2]
[337753167,1726051838086,-12500.0,0.00027123,4]
[337753168,1726051838096,-12500.0,0.000272,5]
[337753169,1726051838105,-12500.0,0.000272,3]
[337753170,1726051838114,-8428.65701073,0.000272,2]
[337753171,1726051838126,-4598.2762932,0.000272,2]
[337753172,1726051838138,-19605.51419831,0.000272,2]
[337753183,1726051840020,-5270.01570441,0.000272,2]
[337753184,1726051840034,-12397.53679335,0.000272,2]
[337753185,1726051840044,-1367.06149219,0.00027246,2]
[337753186,1726051840055,-300.0,0.00027286,2]
[337753187,1726051840065,-2399.82645955,0.00027287,2]
[337753188,1726051840075,-511.05126905,0.000273,4]
[337753189,1726051840086,-500.0,0.00027301,2]
[337753190,1726051840095,-31143.98,0.00027346,3]
[337753191,1726051840105,-267.53,0.00027347,3]
[337753192,1726051840115,-495.73,0.00027347,3]
[337753193,1726051840124,-247.86,0.00027347,3]
[337753194,1726051840133,-743.63,0.00027347,3]
[337753195,1726051840142,-70627.63029086,0.00027357,4]
[337753196,1726051840154,-100746.23215244,0.00027357,4]
[337753199,1726051842876,-350.00768034,0.00027357,4]
[337753200,1726051842888,-1827.28065253,0.00027357,4]
[337753201,1726051842926,-2230.57806216,0.00027357,4]
[337753202,1726051842938,-66142.86307824,0.00027357,4]
[337753223,1726051846498,-1327.76017751,0.00027357,4]
[337753256,1726053032002,-8866.34752258,0.0002494,2]
[337753257,1726053032053,-1874.6346356,0.0002494,2]
[337753258,1726053032065,-3295.87118251,0.0002494,2]
[337753263,1726053040290,-10843.14665931,0.0002494,2]
[337753264,1726053040299,-3539.04969099,0.00024979,2]
[337753265,1726053040308,-5086.03855687,0.00025,2]
[337753266,1726053040318,-191.675092,0.00025483,2]
[337753267,1726053040327,-191.675092,0.00025553,2]
[337753268,1726053040337,-191.675092,0.00025623,2]
[337753269,1726053040347,-191.675092,0.00025693,2]
[337753270,1726053040356,-153.0,0.00025753,2]
[337753271,1726053040366,-153.0,0.00025753,2]
[337753272,1726053040375,-153.0,0.00025753,2]
[337753273,1726053040385,-416.4125872,0.00025753,2]
[337753274,1726053040395,-191.675092,0.00025763,2]
[337753275,1726053040407,-191.675092,0.00025833,2]
[337753276,1726053040417,-191.675092,0.00025903,2]
[337753277,1726053040427,-191.675092,0.00025973,2]
[337753278,1726053040436,-206.661745,0.00025995,2]
[337753279,1726053040447,-191.675092,0.00026042,2]
[337753280,1726053040457,-233.33635743,0.00026042,2]
[337753281,1726053040466,-191.675092,0.00026112,2]
[337753282,1726053040477,-191.675092,0.00026182,2]
[337753283,1726053040485,-191.675092,0.00026252,2]
[337753284,1726053040495,-191.675092,0.00026322,2]
[337753285,1726053040504,-191.675092,0.00026392,2]
[337753286,1726053040513,-191.675092,0.00026462,2]
[337753287,1726053040522,-191.675092,0.00026532,2]
[337753288,1726053040532,-153.0,0.00026575,2]
[337753289,1726053040542,-306.0,0.00026575,2]
[337753290,1726053040553,-191.675092,0.00026602,2]
[337753291,1726053040563,-191.675092,0.00026671,2]
[337753292,1726053040573,-191.675092,0.00026741,2]
[337753293,1726053040583,-152.11913654,0.00026753,2]
[337753294,1726053040592,-191.675092,0.00026811,2]
[337753295,1726053040601,-157.0,0.00027,2]
[337753296,1726053040611,-10000.0,0.00027,2]
[337753297,1726053040621,-18023.14,0.00027235,3]
[337753298,1726053040631,-15019.28,0.00027235,3]
[337753299,1726053040640,-337.04,0.00027235,3]
[337753300,1726053040651,-12516.07,0.00027235,3]
[337753301,1726053040661,-168.52,0.00027235,3]
[337753302,1726053040672,-167.0575478,0.00027244,2]
[337753303,1726053040682,-623.70303687,0.00027244,2]
[337753304,1726053040692,-8779.29351732,0.00027245,4]
[337753305,1726053040705,-138225.29926185,0.00027245,4]
[337753393,1726054232285,-310.746,0.00023894,2]
[337753443,1726054238219,-2501.9500897,0.00023894,2]
[337753445,1726054238230,-163.942308,0.00023974,2]
[337753447,1726054238239,-163.942308,0.00024078,2]
[337753448,1726054238249,-163.942308,0.00024183,2]
[337753450,1726054238258,-163.942308,0.00024287,2]
[337753452,1726054238268,-259.27170159,0.00024344,2]
[337753454,1726054238277,-163.942308,0.00024391,2]
[337753457,1726054238287,-166.666666,0.00024444,2]
[337753458,1726054238296,-163.942308,0.00024495,2]
[337753460,1726054238305,-193.237837,0.00024809,2]
[337753462,1726054238315,-399.65818053,0.00024879,2]
[337753464,1726054238325,-250.0,0.00024884,2]
[337753466,1726054238334,-267.2778074,0.00024898,2]
[337753468,1726054238343,-34044.77104356,0.00025,2]
[337753470,1726054238353,-435.270102,0.00025008,2]
[337753472,1726054238362,-161.710129,0.00025873,2]
[337753474,1726054238371,-500.0,0.00025935,2]
[337753475,1726054238380,-1302.93685885,0.00026,2]
[337753476,1726054238389,-153.0,0.00026384,2]
[337753477,1726054238399,-153.0,0.00026384,2]
[337753478,1726054238408,-153.0,0.00026384,2]
[337753479,1726054238418,-153.0,0.00026384,2]
[337753480,1726054238427,-911.164803,0.00026435,2]
[337753481,1726054238436,-443.5447486,0.00026575,2]
[337753482,1726054238446,-758.34,0.0002699,3]
[337753483,1726054238455,-18360.24,0.0002699,3]
[337753484,1726054238465,-15300.2,0.0002699,3]
[337753485,1726054238474,-500.0,0.00026998,2]
[337753486,1726054238485,-502.53089089,0.00026998,2]
[337753487,1726054238495,-500.0,0.00026998,2]
[337753488,1726054238504,-500.0,0.00026998,2]
[337753489,1726054238513,-500.0,0.00026998,2]
[337753490,1726054238523,-500.0,0.00026998,2]
[337753491,1726054238532,-500.0,0.00026998,2]
[337753492,1726054238543,-500.0,0.00026998,2]
[337753493,1726054238552,-500.0,0.00026998,2]
[337753494,1726054238562,-500.0,0.00026998,2]
[337753495,1726054238571,-368.92284545,0.00026998,2]
[337753496,1726054238580,-500.0,0.00026998,2]
[337753497,1726054238589,-500.0,0.00026998,2]
[337753498,1726054238598,-500.0,0.00026998,2]
[337753499,1726054238607,-630.0,0.00026998,2]
[337753500,1726054238617,-78143.19012715,0.00027,2]
[337753501,1726054238626,-279.50368159,0.00027,2]
[337753502,1726054238635,-252.78,0.00027099,3]
[337753503,1726054238644,-150.112233,0.000271,10]
[337753504,1726054238654,-150.112233,0.000271,9]
[337753505,1726054238663,-150.112233,0.000271,8]
[337753506,1726054238673,-150.112233,0.000271,9]
[337753507,1726054238683,-150.112233,0.000271,6]
[337753508,1726054238692,-150.112233,0.000271,8]
[337753509,1726054238701,-150.112233,0.000271,6]
[337753510,1726054238711,-150.112233,0.000271,5]
[337753511,1726054238720,-150.112233,0.000271,6]
[337753512,1726054238730,-500.0,0.00027108,2]
[337753513,1726054238739,-203.89342732,0.00027108,2]
[337753514,1726054238748,-197.17616056,0.00027108,2]
[337753515,1726054238759,-100425.598442,0.00027109,4]
[337753516,1726054238768,-295.187324,0.00027109,7]
[337753517,1726054238778,-151.0,0.00027109,7]
[337753518,1726054238787,-85069.86497246,0.00027109,4]
[337753519,1726054238800,-15355.73346954,0.00027109,4]
[337753520,1726054238809,-1000.0,0.00027109,2]
[337753521,1726054238818,-167.383298,0.00027119,7]
[337753522,1726054238827,-910.8825249,0.00027119,4]
[337753567,1726054240409,-163.942308,0.00024599,2]
[337753569,1726054240418,-163.942308,0.00024703,2]
[337753571,1726054240427,-163.942308,0.00024807,2]
[337753573,1726054240437,-163.942308,0.00024911,2]
[337753575,1726054240446,-163.942308,0.00025015,2]
[337753577,1726054240456,-163.942308,0.0002512,2]
[337753580,1726054240465,-163.942308,0.00025224,2]
[337753582,1726054240476,-1266.09040886,0.00026946,2]
[337753584,1726054240485,-74159.8136554,0.00027119,4]
[337753586,1726054240495,-100425.598442,0.00027119,4]
[337753588,1726054240504,-515.9136646,0.00027123,2]
[337753596,1726054240513,-153.0,0.00027123,2]
[337753597,1726054240739,-153.0,0.00027123,2]
[337753598,1726054240749,-153.0,0.00027123,2]
[337753600,1726054240758,-306.0,0.00027123,2]
[337753602,1726054240768,-20795.78420406,0.00027138,4]
[337753604,1726054240779,-9186.24545415,0.00027138,4]
[337753626,1726054243275,-308.736748,0.00024658,2]
[337753628,1726054243285,-170869.16722479,0.00027138,4]
[337753629,1726054243295,-4241.92507508,0.00027149,4]
[337753640,1726054246503,-2960.6367953,0.00027149,4]
[337753641,1726054246515,-675.50453211,0.00027149,4]
[337753642,1726054275094,1149.33167939,0.00028,120]
[337753645,1726054626048,300.0,0.00028,120]
[337753651,1726055085525,286728.13,0.00028,120]
[337753770,1726055440514,-24900.0,0.0002441,2]
[337753772,1726055440524,-293.29991,0.00024658,2]
[337753774,1726055440534,-793.938501,0.00024744,2]
[337753776,1726055440544,-380.699589,0.0002482,2]
[337753778,1726055440554,-280.0,0.00024874,2]
[337753780,1726055440563,-2403.3637213,0.00025204,2]
[337753782,1726055440573,-1699.99999974,0.000265,2]
[337753784,1726055440583,-820.7965986,0.00026575,2]
[337753786,1726055440593,-153.0,0.00026575,2]
[337753788,1726055440603,-153.0,0.00026575,2]
[337753790,1726055440613,-515.3520374,0.00026575,2]
[337753792,1726055440623,-153.0,0.00026575,2]
[337753794,1726055440634,-306.0,0.00026575,2]
[337753796,1726055440643,-10000.0,0.00026998,5]
[337753798,1726055440654,-10000.0,0.00026998,5]
[337753801,1726055440663,-5501.86926971,0.00026998,5]
[337753803,1726055440673,-570.0,0.00026999,2]
[337753805,1726055440683,-207.65809394,0.00026999,2]
[337753807,1726055440693,-10000.0,0.00027,2]
[337753809,1726055440703,-1500.0,0.00027,4]
[337753811,1726055440713,-155.0,0.0002707,16]
[337753813,1726055440724,-153.0,0.0002707,2]
[337753815,1726055440734,-1000.0,0.0002707,2]
[337753817,1726055440744,-518.59,0.0002712,3]
[337753819,1726055440755,-172.86,0.00027121,3]
[337753821,1726055440764,-345.71,0.0002713,3]
[337753823,1726055440774,-10625.14,0.0002713,3]
[337753825,1726055440784,-13362.8229067,0.0002713,4]
[337753827,1726055440794,-12750.17,0.00027131,3]
[337753830,1726055440804,-3340.70572668,0.0002714,4]
[337753832,1726055440813,-23384.9400868,0.0002714,4]
[337753834,1726055440823,-151.0,0.0002715,7]
[337753836,1726055440833,-640.256879,0.0002715,7]
[337753838,1726055440843,-640.256879,0.0002715,7]
[337753840,1726055440852,-595.799144,0.0002715,7]
[337753842,1726055440862,-595.799144,0.0002715,7]
[337753844,1726055440872,-151.0,0.0002715,7]
[337753846,1726055440881,-151.0,0.0002715,2]
[337753848,1726055440891,-613.016887,0.0002715,7]
[337753850,1726055440901,-613.016887,0.0002715,7]
[337753852,1726055440910,-315.994581,0.0002715,7]
[337753854,1726055440920,-256.611115,0.0002715,7]
[337753856,1726055440930,-256.611115,0.0002715,7]
[337753858,1726055440940,-315.994581,0.0002715,7]
[337753860,1726055440949,-151.0,0.0002715,7]
[337753862,1726055440959,-431.30773,0.0002715,7]
[337753864,1726055440969,-431.30773,0.0002715,7]
[337753866,1726055440978,-204.045873,0.0002715,7]
[337753868,1726055440988,-204.045873,0.0002715,7]
[337753870,1726055440998,-16703.5286334,0.00027151,4]
[337753872,1726055441007,-151.0,0.00027161,7]
[337753874,1726055441017,-640.256879,0.00027161,7]
[337753876,1726055441027,-640.256879,0.00027161,7]
[337753878,1726055441038,-151.0,0.00027161,7]
[337753880,1726055441048,-151.0,0.00027161,7]
[337753883,1726055441058,-151.0,0.00027161,7]
[337753885,1726055441068,-165.255175,0.00027161,7]
[337753887,1726055441078,-151.0,0.00027161,7]
[337753889,1726055441090,-595.799144,0.00027161,7]
[337753891,1726055441099,-595.799144,0.00027161,7]
[337753893,1726055441108,-765.614915,0.00027161,7]
[337753895,1726055441118,-765.614915,0.00027161,7]
[337753897,1726055441127,-151.0,0.00027161,7]
[337753899,1726055441137,-151.508705,0.00027161,2]
[337753901,1726055441147,-151.0,0.00027161,7]
[337753903,1726055441157,-613.016887,0.00027161,7]
[337753905,1726055441167,-151.0,0.00027161,7]
[337753907,1726055441177,-315.994581,0.00027161,7]
[337753909,1726055441186,-256.611115,0.00027161,7]
[337753911,1726055441197,-613.016887,0.00027161,7]
[337753913,1726055441206,-256.611115,0.00027161,7]
[337753915,1726055441216,-315.994581,0.00027161,7]
[337753917,1726055441226,-431.30773,0.00027161,7]
[337753919,1726055441237,-431.30773,0.00027161,7]
[337753921,1726055441247,-204.045873,0.00027161,7]
[337753923,1726055441256,-179.595182,0.00027161,7]
[337753925,1726055441269,-179.595182,0.00027161,7]
[337753927,1726055441279,-204.045873,0.00027161,7]
[337753929,1726055441290,-3340.70572668,0.0002717,4]
[337753931,1726055441301,-151.0,0.0002718,7]
[337753933,1726055441311,-151.0,0.0002718,7]
[337753935,1726055441322,-294.484643,0.0002718,7]
[337753937,1726055441333,-154.65416,0.0002718,7]
[337753939,1726055441344,-151.0,0.0002718,7]
[337753941,1726055441354,-151.0,0.0002718,7]
[337753943,1726055441365,-726.426005,0.0002718,7]
[337753945,1726055441376,-726.426005,0.0002718,7]
[337753947,1726055441387,-726.426005,0.0002718,7]
[337753949,1726055441397,-726.426005,0.0002718,7]
[337753951,1726055441407,-399.285101,0.0002718,7]
[337753953,1726055441419,-399.285101,0.0002718,7]
[337753955,1726055441429,-399.285101,0.0002718,7]
[337753957,1726055441440,-399.285101,0.0002718,7]
[337753959,1726055441449,-152.355284,0.0002718,7]
[337753961,1726055441459,-151.0,0.0002718,7]
[337753963,1726055441469,-151.0,0.0002718,7]
[337753966,1726055441479,-151.0,0.0002718,7]
[337753967,1726055441489,-151.0,0.0002718,7]
[337753969,1726055441498,-292.128837,0.0002718,7]
[337753971,1726055441508,-292.128837,0.0002718,7]
[337753974,1726055441518,-292.128837,0.0002718,7]
[337753976,1726055441528,-292.128837,0.0002718,7]
[337753978,1726055441538,-151.0,0.0002718,7]
[337753980,1726055441548,-151.0,0.0002718,7]
[337753982,1726055441558,-151.0,0.0002718,7]
[337753984,1726055441568,-136.89087109,0.0002718,7]
[337754001,1726055441726,-14.10912891,0.0002718,7]
[337754003,1726055441736,-151.0,0.0002718,7]
[337754006,1726055441748,-151.0,0.0002718,7]
[337754008,1726055441759,-159.402866,0.0002718,7]
[337754010,1726055441768,-26.4700928,0.0002718,7]
[337754940,1726055935281,10000.0,0.00028,120]
[337754941,1726055946684,10000.0,0.00028,120]
[337754942,1726055957241,10000.0,0.00028,120]
[337754943,1726055965506,10000.0,0.00028,120]
[337754957,1726056632556,-166.740451,0.00024413,2]
[337754958,1726056632567,-293.124886,0.00024552,2]
[337754959,1726056632577,-328.634915,0.00024658,2]
[337754960,1726056632587,-3000.0,0.0002494,2]
[337754961,1726056632597,-12354.92637305,0.00025368,2]
[337754962,1726056632611,-4483.87532739,0.00025368,2]
[337754976,1726056638512,-1953.60679633,0.00025368,2]
[337754977,1726056638525,-818.75508754,0.00025368,2]
[337754978,1726056638540,-5288.83641569,0.00025368,2]
[337754979,1726056638551,-166.740451,0.00025522,2]
[337754981,1726056638561,-199.27128676,0.000256,2]
[337754984,1726056638572,-500.0,0.00025935,2]
[337754986,1726056638583,-5014.44475792,0.0002631,2]
[337754988,1726056638592,-1651.86357373,0.00026335,2]
[337754990,1726056638602,-911.164803,0.00026435,2]
[337754992,1726056638611,-166.740451,0.00026631,2]
[337754994,1726056638620,-5014.44475792,0.00026651,2]
[337754996,1726056638631,-5014.44475793,0.00026918,2]
[337754998,1726056638641,-150.0,0.0002704,2]
[337755000,1726056638651,-1000.0,0.0002708,2]
[337755002,1726056638660,-11171.24,0.0002715,3]
[337755004,1726056638670,-9309.37,0.0002715,3]
[337755006,1726056638679,-30434.25213987,0.0002715,7]
[337755009,1726056638699,-1761.56429676,0.0002715,7]
[337755012,1726056638714,-1406.60356337,0.0002715,7]
[337755014,1726056638724,-46042.58457084,0.0002716,2]
[337755201,1726056644261,-9599.16840645,0.0002716,2]
[337755202,1726056644273,-31924.84626927,0.0002716,2]
[337755203,1726056644283,-492.72539913,0.00027179,2]
[337755204,1726056644293,-500.0,0.0002718,7]
[337755205,1726056644302,-347.16,0.0002718,3]
[337755206,1726056644312,-173.58,0.0002718,3]
[337755207,1726056644324,-520.74,0.0002718,3]
[337755208,1726056644333,-32183.81140984,0.0002718,4]
[337755209,1726056644349,-2650.0,0.0002718,4]
[337755221,1726056646633,-7757.81,0.0002717,3]
[337755222,1726056646644,-372009.08083316,0.0002718,4]
[337755223,1726056646659,-124142.73323741,0.0002718,4]
[337755224,1726056646671,-736.87080341,0.0002718,4]
[337755225,1726056646687,-734.3,0.0002718,4]
[337755268,1726057831782,-312.203169,0.00024658,2]
[337755270,1726057831793,-166.740451,0.00025007,2]
[337755272,1726057831802,-4931.80999005,0.00025299,2]
[337755309,1726057839704,-12731.04244929,0.00025299,2]
[337755311,1726057839899,-808.88059479,0.00025299,2]
[337755316,1726057842683,-4379.59828127,0.00025299,2]
[337755317,1726057842692,-293.124886,0.00025422,2]
[337755318,1726057842702,-199.27128676,0.000255,2]
[337755319,1726057842711,-153.0,0.00026301,2]
[337755320,1726057842720,-153.0,0.00026301,2]
[337755321,1726057842730,-153.0,0.00026301,2]
[337755322,1726057842739,-153.0,0.00026301,2]
[337755323,1726057842750,-153.0,0.00026849,2]
[337755324,1726057842761,-1445.38062697,0.0002701,2]
[337755326,1726057842771,-155.0,0.0002706,16]
[337755327,1726057842780,-1000.0,0.00027061,2]
[337755328,1726057842789,-57905.48799724,0.000271,2]
[337755349,1726057845870,-1994.51200276,0.000271,2]
[337755350,1726057845887,-434.31,0.0002711,3]
[337755351,1726057845898,-217.15,0.0002711,3]
[337755352,1726057845909,-651.48,0.0002711,3]
[337755353,1726057845920,-7706.82,0.0002712,3]
[337755354,1726057845931,-492.72539913,0.00027129,2]
[337755355,1726057845941,-98742.9543898,0.0002713,4]
[337755356,1726057845951,-61601.29766479,0.0002713,4]
[337755503,1726059037941,-296.59301,0.00024658,2]
[337755504,1726059037953,-2924.61531,0.00025663,2]
[337755505,1726059037964,-2924.61531,0.00026348,2]
[337755506,1726059037974,-3396.03208603,0.00026878,2]
[337755507,1726059037983,-1264.70804866,0.00026933,2]
[337755508,1726059037993,-1461.40118575,0.00027,2]
[337755509,1726059038006,-2937.35411086,0.00027,2]
[337755510,1726059038017,-26035.50470339,0.00027,2]
[337755511,1726059038027,-2924.61531,0.00027033,2]
[337755512,1726059038036,-155.0,0.0002705,16]
[337755513,1726059038050,-150.0,0.0002705,2]
[337755514,1726059038060,-415.427344,0.000271,2]
[337755515,1726059038070,-1027.2715236,0.000271,2]
[337755516,1726059038079,-208.3807618,0.00027113,2]
[337755517,1726059038089,-208.3807618,0.00027113,2]
[337755518,1726059038098,-208.3807618,0.00027113,2]
[337755519,1726059038107,-154.6557981,0.00027113,2]
[337755520,1726059038117,-1000.0,0.00027139,2]
[337755521,1726059038127,-151.0,0.0002716,7]
[337755522,1726059038137,-4941.92636758,0.00027177,3]
[337755523,1726059038147,-150.01,0.00027178,2]
[337755524,1726059038156,-3420.24887625,0.00027178,2]
[337755525,1726059038166,-248.05336041,0.0002718,4]
[337755526,1726059038175,-7214.55261415,0.0002718,3]
[337755527,1726059038185,-176.462628,0.000272,2]
[337755528,1726059038195,-8298.8,0.00027218,3]
[337755529,1726059038204,-269.84,0.00027219,3]
[337755530,1726059038214,-809.55,0.00027219,3]
[337755531,1726059038223,-231.57523366,0.00027228,2]
[337755532,1726059038233,-500.0,0.00027228,2]
[337755533,1726059038242,-500.0,0.00027228,2]
[337755534,1726059038251,-169.70503603,0.00027228,2]
[337755535,1726059038260,-240441.32166875,0.00027229,4]
[337755547,1726059040017,-329.7518327,0.00027229,4]
[337755548,1726059040030,-39755.67297395,0.00027229,4]
[337755657,1726060232142,-281.763359,0.00024658,2]
[337755659,1726060232152,-324.696666,0.00025799,2]
[337755661,1726060232162,-166.666667,0.00026147,2]
[337755663,1726060232172,-166.666667,0.0002627,2]
[337755664,1726060232182,-34.296641,0.00026394,2]
[337755710,1726060238171,-132.370026,0.00026394,2]
[337755711,1726060238181,-324.696666,0.00026484,2]
[337755713,1726060238190,-166.666667,0.00026518,2]
[337755715,1726060238202,-166.666667,0.00026642,2]
[337755717,1726060238211,-166.666667,0.00026766,2]
[337755719,1726060238220,-4718.0987096,0.00026768,2]
[337755721,1726060238230,-166.666667,0.0002689,2]
[337755722,1726060238239,-1106.61954256,0.00026976,2]
[337755724,1726060238249,-166.666667,0.00027014,2]
[337755725,1726060238258,-500.0,0.00027032,14]
[337755726,1726060238267,-500.0,0.00027032,14]
[337755727,1726060238277,-500.0,0.00027032,14]
[337755728,1726060238286,-1124.8,0.00027032,14]
[337755729,1726060238295,-500.0,0.00027032,14]
[337755730,1726060238305,-500.0,0.00027032,14]
[337755731,1726060238314,-4718.09870961,0.00027044,2]
[337755732,1726060238324,-500.0,0.00027076,14]
[337755733,1726060238334,-500.47688768,0.00027076,14]
[337755734,1726060238345,-233.62001102,0.00027076,14]
[337755735,1726060238356,-1013.92,0.00027076,14]
[337755736,1726060238366,-500.0,0.00027076,14]
[337755737,1726060238376,-500.0,0.00027076,14]
[337755738,1726060238386,-500.0,0.00027076,14]
[337755739,1726060238396,-500.0,0.00027076,14]
[337755740,1726060238405,-500.0,0.00027076,14]
[337755741,1726060238419,-500.0,0.00027076,14]
[337755742,1726060238429,-500.0,0.00027076,14]
[337755743,1726060238439,-500.0,0.00027076,14]
[337755744,1726060238452,-500.0,0.00027076,14]
[337755745,1726060238461,-500.0,0.00027076,14]
[337755746,1726060238470,-1731.49,0.00027076,14]
[337755747,1726060238479,-648.65,0.00027076,14]
[337755748,1726060238489,-500.0,0.00027076,14]
[337755749,1726060238498,-500.0,0.00027076,14]
[337755750,1726060238507,-500.0,0.00027076,14]
[337755751,1726060238520,-504.39322508,0.00027076,14]
[337755752,1726060238529,-500.0,0.00027076,14]
[337755753,1726060238538,-500.0,0.00027076,14]
[337755754,1726060238548,-500.0,0.00027076,14]
[337755755,1726060238559,-500.0,0.00027076,14]
[337755756,1726060238568,-605.6,0.00027076,14]
[337755757,1726060238579,-500.0,0.00027076,14]
[337755758,1726060238588,-500.0,0.00027076,19]
[337755759,1726060238599,-500.0,0.00027076,19]
[337755760,1726060238610,-501.32191278,0.00027076,19]
[337755761,1726060238621,-500.0,0.00027076,19]
[337755762,1726060238630,-500.0,0.00027076,19]
[337755763,1726060238639,-500.0,0.00027076,19]
[337755764,1726060238649,-500.0,0.00027076,19]
[337755765,1726060238659,-500.0,0.00027076,19]
[337755766,1726060238668,-199.27893721,0.00027076,19]
[337755767,1726060238677,-502.72412927,0.00027076,19]
[337755768,1726060238686,-503.78615478,0.00027076,19]
[337755769,1726060238697,-500.0,0.00027076,19]